fUSD/lending_fUSD_20250319
["ID","MTS","AMOUNT","RATE_DAILY","PERIOD"]
[356400514,1742406632308,-168.12,0.00029221,2]
[356400515,1742406632318,-150.0,0.00029375,2]
[356400516,1742406632329,-150.0,0.00029375,2]
[356400517,1742406632339,-150.0,0.00029375,2]
[356400518,1742406632349,-168.12,0.0002946,2]
[356400519,1742406632358,-168.57,0.00029578,2]
[356400520,1742406632368,-300.0,0.00029666,2]
[356400521,1742406632378,-1360.5717,0.00029667,2]
[356400522,1742406632388,-2356.2935,0.00029667,2]
[356400524,1742406632398,-2888.2919,0.00029672,2]
[356400526,1742406632407,-677.51254046,0.00029677,2]
[356400528,1742406632418,-150.0,0.00029677,2]
[356400530,1742406632428,-168.12,0.000297,2]
[356400532,1742406632437,-957.76019805,0.000297,2]
[356400534,1742406632450,-19042.23980195,0.000297,2]
[356400536,1742406632461,-150.0,0.00029734,2]
[356400538,1742406632472,-338.401,0.0002974,23]
[356400540,1742406632481,-150.0,0.00029743,2]
[356400542,1742406632491,-150.0,0.00029744,2]
[356400544,1742406632503,-150.0,0.00029753,2]
[356400546,1742406632513,-150.0,0.00029756,2]
[356400548,1742406632523,-150.0,0.00029762,2]
[356400550,1742406632532,-631.47365816,0.00029766,2]
[356400552,1742406632543,-227.19314645,0.00029766,2]
[356400553,1742406632553,-497.12578567,0.00029766,2]
[356400555,1742406632562,-15569.1312845,0.00029767,3]
[356400557,1742406632572,-500.0,0.00029767,2]
[356400560,1742406632583,-500.0,0.00029767,2]
[356400561,1742406632593,-500.0,0.00029767,2]
[356400563,1742406632603,-1055.37,0.00029767,2]
[356400565,1742406632612,-500.46,0.00029767,2]
[356400567,1742406632621,-500.0,0.00029767,2]
[356400569,1742406632631,-655.36,0.00029767,2]
[356400571,1742406632641,-858.79,0.00029767,2]
[356400573,1742406632651,-500.0,0.00029767,2]
[356400575,1742406632661,-500.0,0.00029767,2]
[356400577,1742406632670,-500.0,0.00029767,2]
[356400579,1742406632680,-500.0,0.00029767,2]
[356400581,1742406632689,-500.0,0.00029767,2]
[356400583,1742406632699,-500.0,0.00029767,2]
[356400585,1742406632708,-753.21,0.00029767,2]
[356400587,1742406632718,-500.0,0.00029767,2]
[356400589,1742406632727,-500.0,0.00029767,2]
[356400591,1742406632738,-500.0,0.00029767,2]
[356400593,1742406632747,-418.63574469,0.00029767,2]
[356400595,1742406632756,-597.96,0.00029767,2]
[356400597,1742406632765,-500.0,0.00029767,2]
[356400599,1742406632773,-500.0,0.00029767,2]
[356400601,1742406632782,-500.0,0.00029767,2]
[356400603,1742406632792,-500.0,0.00029767,2]
[356400605,1742406632803,-525.7667532,0.00029767,2]
[356400607,1742406632813,-500.0,0.00029767,2]
[356400609,1742406632822,-1500.0,0.00029767,2]
[356400611,1742406632832,-500.0,0.00029767,2]
[356400613,1742406632842,-500.0,0.00029767,2]
[356400614,1742406632852,-975.68,0.00029767,2]
[356400615,1742406632862,-500.0,0.00029767,2]
[356400616,1742406632872,-500.0,0.00029767,2]
[356400617,1742406632882,-516.25,0.00029767,2]
[356400618,1742406632891,-521.72669575,0.00029767,2]
[356400619,1742406632901,-500.0,0.00029767,2]
[356400620,1742406632911,-500.0,0.00029767,2]
[356400621,1742406632921,-518.97805374,0.00029767,2]
[356400622,1742406632931,-500.0,0.00029767,2]
[356400623,1742406632941,-396.14191922,0.00029767,2]
[356400624,1742406632951,-500.0,0.00029767,2]
[356400625,1742406632961,-500.0,0.00029767,2]
[356400626,1742406632971,-973.76,0.00029767,2]
[356400627,1742406632981,-500.0,0.00029767,2]
[356400628,1742406632992,-563.74,0.00029767,2]
[356400629,1742406633003,-647.75,0.00029767,2]
[356400630,1742406633015,-500.0,0.00029767,2]
[356400631,1742406633026,-308.0463936,0.00029767,2]
[356400632,1742406633036,-1359.84,0.00029767,2]
[356400633,1742406633046,-602.57,0.00029767,2]
[356400634,1742406633056,-500.0,0.00029767,2]
[356400635,1742406633066,-500.0,0.00029767,2]
[356400636,1742406633076,-500.0,0.00029767,2]
[356400637,1742406633086,-500.0,0.00029767,2]
[356400638,1742406633096,-500.0,0.00029767,2]
[356400639,1742406633106,-545.89,0.00029767,2]
[356400640,1742406633116,-500.0,0.00029767,2]
[356400641,1742406633125,-500.0,0.00029767,2]
[356400642,1742406633135,-500.0,0.00029767,2]
[356400643,1742406633144,-500.0,0.00029767,2]
[356400644,1742406633154,-585.71,0.00029767,2]
[356400645,1742406633164,-500.0,0.00029767,2]
[356400646,1742406633174,-500.0,0.00029767,2]
[356400647,1742406633185,-1821.11,0.00029767,2]
[356400648,1742406633195,-500.0,0.00029767,2]
[356400649,1742406633205,-500.0,0.00029767,2]
[356400650,1742406633214,-500.0,0.00029767,2]
[356400651,1742406633224,-500.0,0.00029767,2]
[356400652,1742406633234,-514.36,0.00029767,2]
[356400653,1742406633244,-500.0,0.00029767,2]
[356400654,1742406633254,-500.0,0.00029767,2]
[356400655,1742406633263,-500.0,0.00029767,2]
[356400657,1742406633273,-500.0,0.00029767,2]
[356400659,1742406633283,-500.0,0.00029767,2]
[356400661,1742406633293,-500.0,0.00029767,2]
[356400663,1742406633303,-500.0,0.00029767,2]
[356400665,1742406633315,-500.0,0.00029767,2]
[356400667,1742406633327,-500.0,0.00029767,2]
[356400669,1742406633338,-540.51,0.00029767,2]
[356400671,1742406633348,-500.0,0.00029767,2]
[356400673,1742406633359,-500.0,0.00029767,2]
[356400675,1742406633370,-524.2412728,0.00029767,2]
[356400677,1742406633381,-500.0,0.00029767,2]
[356400679,1742406633392,-500.0,0.00029767,2]
[356400681,1742406633403,-479.95149615,0.00029767,2]
[356400683,1742406633412,-530.97,0.00029767,2]
[356400685,1742406633422,-500.0,0.00029767,2]
[356400687,1742406633432,-500.0,0.00029767,2]
[356400689,1742406633443,-621.12,0.00029767,2]
[356400691,1742406633453,-500.0,0.00029767,2]
[356400693,1742406633463,-500.0,0.00029767,2]
[356400695,1742406633474,-622.33409046,0.00029767,2]
[356400697,1742406633485,-500.0,0.00029767,2]
[356400699,1742406633497,-500.0,0.00029767,2]
[356400701,1742406633515,-816.19,0.00029767,2]
[356400703,1742406633525,-500.0,0.00029767,2]
[356400705,1742406633535,-500.0,0.00029767,2]
[356400707,1742406633547,-500.0,0.00029767,2]
[356400709,1742406633557,-500.0,0.00029767,2]
[356400711,1742406633567,-500.0,0.00029767,2]
[356400713,1742406633577,-500.0,0.00029767,2]
[356400715,1742406633588,-958.04,0.00029767,2]
[356400717,1742406633598,-151.84653413,0.00029767,2]
[356400719,1742406633607,-500.0,0.00029767,2]
[356400721,1742406633617,-500.0,0.00029767,2]
[356400723,1742406633626,-500.0,0.00029767,2]
[356400725,1742406633636,-500.0,0.00029767,2]
[356400727,1742406633646,-500.0,0.00029767,2]
[356400729,1742406633657,-500.0,0.00029767,2]
[356400731,1742406633668,-536.03736135,0.00029767,2]
[356400733,1742406633678,-500.0,0.00029767,2]
[356400735,1742406633688,-500.0,0.00029767,2]
[356400737,1742406633699,-500.0,0.00029767,2]
[356400739,1742406633709,-612.82783812,0.00029767,2]
[356400741,1742406633719,-500.0,0.00029767,2]
[356400743,1742406633729,-583.84000585,0.00029767,2]
[356400745,1742406633739,-500.0,0.00029767,2]
[356400747,1742406633748,-525.72044826,0.00029767,2]
[356400749,1742406633758,-648.78177645,0.00029767,2]
[356400751,1742406633767,-500.0,0.00029767,2]
[356400752,1742406633776,-500.0,0.00029767,2]
[356400754,1742406633787,-582.03339459,0.00029767,2]
[356400756,1742406633796,-1180.72,0.00029767,2]
[356400758,1742406633806,-500.0,0.00029767,2]
[356400761,1742406633817,-502.70830719,0.00029767,2]
[356400763,1742406633827,-500.0,0.00029767,2]
[356400765,1742406633837,-670.13,0.00029767,2]
[356400767,1742406633847,-500.0,0.00029767,2]
[356400769,1742406633857,-1335.93,0.00029767,2]
[356400771,1742406633867,-886.18,0.00029767,2]
[356400773,1742406633877,-500.0,0.00029767,2]
[356400775,1742406633887,-500.0,0.00029767,2]
[356400777,1742406633896,-689.6,0.00029767,2]
[356400779,1742406633906,-500.0,0.00029767,2]
[356400781,1742406633916,-500.0,0.00029767,2]
[356400783,1742406633927,-500.0,0.00029767,2]
[356400785,1742406633937,-500.0,0.00029767,2]
[356400787,1742406633947,-873.31,0.00029767,2]
[356400789,1742406633956,-500.0,0.00029767,2]
[356400791,1742406633965,-500.0,0.00029767,2]
[356400793,1742406633976,-500.0,0.00029767,2]
[356400795,1742406633986,-500.0,0.00029767,2]
[356400797,1742406633996,-1933.99,0.00029767,2]
[356400799,1742406634005,-500.0,0.00029767,2]
[356400801,1742406634015,-500.0,0.00029767,2]
[356400803,1742406634025,-500.0,0.00029767,2]
[356400805,1742406634036,-500.0,0.00029767,2]
[356400807,1742406634046,-500.0,0.00029767,2]
[356400809,1742406634056,-500.0,0.00029767,2]
[356400811,1742406634066,-500.0,0.00029767,2]
[356400813,1742406634077,-500.0,0.00029767,2]
[356400815,1742406634086,-561.9,0.00029767,2]
[356400816,1742406634097,-500.0,0.00029767,2]
[356400818,1742406634107,-458.41684253,0.00029767,2]
[356400819,1742406634559,-41.58315747,0.00029767,2]
[356400820,1742406634569,-500.0,0.00029767,2]
[356400821,1742406634581,-590.86,0.00029767,2]
[356400822,1742406634590,-500.0,0.00029767,2]
[356400823,1742406634598,-500.0,0.00029767,2]
[356400824,1742406634608,-500.0,0.00029767,2]
[356400825,1742406634618,-919.37,0.00029767,2]
[356400826,1742406634628,-500.0,0.00029767,2]
[356400827,1742406634638,-500.0,0.00029767,2]
[356400828,1742406634648,-500.0,0.00029767,2]
[356400829,1742406634657,-500.0,0.00029767,2]
[356400830,1742406634667,-194.06002961,0.00029767,2]
[356400831,1742406634679,-305.93997039,0.00029767,2]
[356400832,1742406634688,-500.0,0.00029767,2]
[356400833,1742406634698,-500.0,0.00029767,2]
[356400834,1742406634707,-500.0,0.00029767,2]
[356400835,1742406634717,-500.0,0.00029767,2]
[356400836,1742406634726,-500.0,0.00029767,2]
[356400837,1742406634735,-257.4132637,0.00029767,2]
[356400838,1742406634777,-242.5867363,0.00029767,2]
[356400839,1742406634788,-500.0,0.00029767,2]
[356400840,1742406634799,-500.0,0.00029767,2]
[356400841,1742406634808,-322.92926685,0.00029767,2]
[356400842,1742406634828,-285.49073315,0.00029767,2]
[356400843,1742406634838,-982.43,0.00029767,2]
[356400844,1742406634847,-1549.93,0.00029767,2]
[356400845,1742406634857,-500.0,0.00029767,2]
[356400846,1742406634867,-830.28,0.00029767,2]
[356400847,1742406634877,-500.0,0.00029767,2]
[356400848,1742406634886,-500.0,0.00029767,2]
[356400849,1742406634896,-500.0,0.00029767,2]
[356400850,1742406634905,-833.52,0.00029767,2]
[356400851,1742406634915,-1000.0,0.00029767,2]
[356400852,1742406634924,-195.23226672,0.00029767,2]
[356400853,1742406634937,-617.55773328,0.00029767,2]
[356400854,1742406634947,-500.0,0.00029767,2]
[356400855,1742406634957,-1107.42,0.00029767,2]
[356400856,1742406634966,-1063.47,0.00029767,2]
[356400857,1742406634975,-138.94024753,0.00029767,2]
[356400858,1742406634987,-361.34044745,0.00029767,2]
[356400859,1742406634997,-978.37,0.00029767,2]
[356400860,1742406635007,-500.0,0.00029767,2]
[356400861,1742406635017,-500.0,0.00029767,2]
[356400862,1742406635027,-1029.48,0.00029767,2]
[356400863,1742406635037,-500.0,0.00029767,2]
[356400864,1742406635047,-500.0,0.00029767,2]
[356400865,1742406635057,-970.8060048,0.00029767,2]
[356400866,1742406637898,-150.0,0.00029704,2]
[356400867,1742406637907,-149.61303653,0.00029715,2]
[356400874,1742406640012,-150.0,0.00029708,2]
[356400875,1742406640022,-0.38696347,0.00029715,2]
[356400876,1742406640031,-150.0,0.00029759,2]
[356400877,1742406640041,-254.47053655,0.00029767,2]
[356400878,1742406640067,-333.09345865,0.00029767,2]
[356400879,1742406640076,-500.0,0.00029767,2]
[356400880,1742406640086,-300.0,0.00029767,2]
[356400881,1742406640095,-507.47784106,0.00029767,2]
[356400882,1742406640104,-500.0,0.00029767,2]
[356400883,1742406640113,-500.0,0.00029767,2]
[356400884,1742406640123,-500.0,0.00029767,2]
[356400885,1742406640131,-500.0,0.00029767,2]
[356400886,1742406640140,-241.08265645,0.00029767,2]
[356400887,1742406640149,-996.48,0.00029767,2]
[356400888,1742406640159,-398.96,0.00029767,2]
[356400889,1742406640168,-500.0,0.00029767,2]
[356400890,1742406640177,-534.54258174,0.00029767,2]
[356400891,1742406640187,-500.0,0.00029767,2]
[356400892,1742406640196,-500.0,0.00029767,2]
[356400893,1742406640206,-655.81,0.00029767,2]
[356400894,1742406640215,-500.0,0.00029767,2]
[356400895,1742406640225,-8539.75346209,0.00029768,3]
[356400896,1742406640254,-150.0,0.00029722,2]
[356400897,1742406640264,-283.70517373,0.00029768,3]
[356400898,1742406640281,-6745.67264868,0.00029768,3]
[356400899,1742406640293,-150.0,0.00029769,2]
[356400900,1742406640304,-150.0,0.0002977,2]
[356400901,1742406640314,-150.0,0.0002977,2]
[356400902,1742406640324,-150.0,0.00029771,2]
[356400903,1742406640334,-150.0,0.00029775,2]
[356400904,1742406640344,-93.42312882,0.00029777,2]
[356400905,1742406640354,-550.26932267,0.00029777,2]
[356400906,1742406640364,-1849.77,0.00029777,2]
[356400907,1742406640375,-539.77,0.00029777,2]
[356400908,1742406640385,-500.0,0.00029777,2]
[356400909,1742406640395,-594.92227512,0.00029777,2]
[356400910,1742406640405,-562.06,0.00029777,2]
[356400911,1742406640415,-500.0,0.00029777,2]
[356400912,1742406640424,-660.01,0.00029777,2]
[356400913,1742406640434,-500.0,0.00029777,2]
[356400914,1742406640444,-1329.68,0.00029777,2]
[356400915,1742406640454,-500.0,0.00029777,2]
[356400916,1742406640464,-1377.45,0.00029777,2]
[356400917,1742406640474,-335.7153813,0.00029777,2]
[356400918,1742406640484,-377.48180779,0.00029777,2]
[356400919,1742406640493,-500.0,0.00029777,2]
[356400920,1742406640504,-500.0,0.00029777,2]
[356400921,1742406640514,-500.0,0.00029777,2]
[356400923,1742406640523,-663.04,0.00029777,2]
[356400925,1742406640533,-500.0,0.00029777,2]
[356400927,1742406640544,-500.0,0.00029777,2]
[356400929,1742406640554,-563.63390384,0.00029777,2]
[356400930,1742406640563,-500.0,0.00029777,2]
[356400931,1742406640573,-514.07,0.00029777,2]
[356400932,1742406640582,-500.0,0.00029777,2]
[356400933,1742406640592,-500.0,0.00029777,2]
[356400934,1742406640602,-529.78,0.00029777,2]
[356400935,1742406640611,-1903.9,0.00029777,2]
[356400936,1742406640620,-500.0,0.00029777,2]
[356400937,1742406640629,-500.0,0.00029777,2]
[356400938,1742406640638,-500.0,0.00029777,2]
[356400939,1742406640649,-500.0,0.00029777,2]
[356400940,1742406640658,-500.0,0.00029777,2]
[356400941,1742406640668,-500.0,0.00029777,2]
[356400942,1742406640678,-964.41,0.00029777,2]
[356400943,1742406640687,-518.26167599,0.00029777,2]
[356400944,1742406640697,-500.0,0.00029777,2]
[356400945,1742406640706,-528.03,0.00029777,2]
[356400946,1742406640715,-500.0,0.00029777,2]
[356400947,1742406640725,-500.0,0.00029777,2]
[356400948,1742406640734,-500.0,0.00029777,2]
[356400949,1742406640744,-500.0,0.00029777,2]
[356400950,1742406640753,-500.0,0.00029777,2]
[356400951,1742406640761,-500.0,0.00029777,2]
[356400952,1742406640770,-500.0,0.00029777,2]
[356400953,1742406640778,-500.0,0.00029777,2]
[356400954,1742406640786,-500.0,0.00029777,2]
[356400955,1742406640798,-500.0,0.00029777,2]
[356400956,1742406640806,-500.0,0.00029777,2]
[356400957,1742406640814,-500.0,0.00029777,2]
[356400958,1742406640824,-500.0,0.00029777,2]
[356400959,1742406640833,-537.22,0.00029777,2]
[356400960,1742406640842,-500.0,0.00029777,2]
[356400961,1742406640852,-500.0,0.00029777,2]
[356400962,1742406640862,-500.0,0.00029777,2]
[356400963,1742406640871,-932.78,0.00029777,2]
[356400964,1742406640880,-500.0,0.00029777,2]
[356400965,1742406640889,-500.0,0.00029777,2]
[356400966,1742406640899,-500.0,0.00029777,2]
[356400967,1742406640908,-539.5,0.00029777,2]
[356400968,1742406640917,-500.0,0.00029777,2]
[356400969,1742406640927,-500.0,0.00029777,2]
[356400970,1742406640936,-500.0,0.00029777,2]
[356400971,1742406640945,-572.99,0.00029777,2]
[356400972,1742406640954,-500.0,0.00029777,2]
[356400973,1742406640964,-500.0,0.00029777,2]
[356400974,1742406640973,-500.0,0.00029777,2]
[356400975,1742406640983,-500.0,0.00029777,2]
[356400976,1742406640992,-500.0,0.00029777,2]
[356400977,1742406641002,-449.95646011,0.00029777,2]
[356400978,1742406641011,-305.54221333,0.00029777,2]
[356400979,1742406641021,-500.0,0.00029777,2]
[356400980,1742406641031,-500.0,0.00029777,2]
[356400981,1742406641043,-500.0,0.00029777,2]
[356400982,1742406641053,-836.61,0.00029777,2]
[356400983,1742406641063,-500.0,0.00029777,2]
[356400984,1742406641073,-500.0,0.00029777,2]
[356400985,1742406641084,-1113.61,0.00029777,2]
[356400986,1742406641094,-500.0,0.00029777,2]
[356400987,1742406641104,-851.94,0.00029777,2]
[356400988,1742406641115,-500.0,0.00029777,2]
[356400989,1742406641125,-604.35,0.00029777,2]
[356400990,1742406641135,-500.0,0.00029777,2]
[356400991,1742406641146,-1189.72,0.00029777,2]
[356400992,1742406641155,-822.46,0.00029777,2]
[356400993,1742406641166,-368.63432758,0.00029777,2]
[356400994,1742406641176,-500.0,0.00029777,2]
[356400995,1742406641186,-500.0,0.00029777,2]
[356400996,1742406641196,-500.0,0.00029777,2]
[356400997,1742406641206,-500.0,0.00029777,2]
[356400998,1742406641216,-507.09,0.00029777,2]
[356400999,1742406641227,-953.53,0.00029777,2]
[356401000,1742406641237,-194.145991,0.00029777,2]
[356401001,1742406641247,-313.57091377,0.00029777,2]
[356401002,1742406641262,-287.66750371,0.00029777,2]
[356401003,1742406641272,-390.57249629,0.00029777,2]
[356401004,1742406641284,-109.42750371,0.00029777,2]
[356401005,1742406641295,-312.95609629,0.00029777,2]
[356401006,1742406641311,-392.85444936,0.00029777,2]
[356401007,1742406641366,-280.4472483,0.00029765,2]
[356401008,1742406641376,-101.99945435,0.00029777,2]
[356401009,1742406641386,-350.6933139,0.00029777,2]
[356401010,1742406641399,-149.3066861,0.00029777,2]
[356401011,1742406641410,-1114.37,0.00029777,2]
[356401012,1742406641420,-487.94024093,0.00029777,2]
[356401013,1742406641431,-500.0,0.00029777,2]
[356401014,1742406641442,-500.0,0.00029777,2]
[356401015,1742406641452,-462.96255559,0.00029777,2]
[356401016,1742406641462,-516.65485237,0.00029777,2]
[356401017,1742406641473,-500.0,0.00029777,2]
[356401018,1742406641484,-500.0,0.00029777,2]
[356401019,1742406641495,-887.43,0.00029777,2]
[356401020,1742406641509,-500.0,0.00029777,2]
[356401021,1742406641519,-714.14,0.00029777,2]
[356401022,1742406641529,-500.0,0.00029777,2]
[356401023,1742406641540,-500.0,0.00029777,2]
[356401024,1742406641551,-500.0,0.00029777,2]
[356401025,1742406641561,-500.0,0.00029777,2]
[356401026,1742406641571,-500.0,0.00029777,2]
[356401027,1742406641583,-529.1722214,0.00029777,2]
[356401028,1742406641593,-737.94,0.00029777,2]
[356401029,1742406641603,-500.0,0.00029777,2]
[356401030,1742406641612,-500.0,0.00029777,2]
[356401031,1742406641622,-500.0,0.00029777,2]
[356401032,1742406641632,-1282.45,0.00029777,2]
[356401033,1742406641641,-500.0,0.00029777,2]
[356401034,1742406641650,-500.0,0.00029777,2]
[356401035,1742406641660,-681.45,0.00029777,2]
[356401036,1742406641671,-500.0,0.00029777,2]
[356401037,1742406641680,-500.0,0.00029777,2]
[356401038,1742406641689,-500.0,0.00029777,2]
[356401039,1742406641699,-917.93,0.00029777,2]
[356401040,1742406641709,-500.0,0.00029777,2]
[356401041,1742406641719,-500.0,0.00029777,2]
[356401042,1742406641728,-506.35835278,0.00029777,2]
[356401043,1742406641737,-450.18250852,0.00029777,2]
[356401070,1742406643199,-619.57,0.00029767,2]
[356401071,1742406643208,-197.80749148,0.00029777,2]
[356401072,1742406643218,-500.0,0.00029777,2]
[356401073,1742406643227,-596.09,0.00029777,2]
[356401074,1742406643236,-500.0,0.00029777,2]
[356401075,1742406643246,-700.15,0.00029777,2]
[356401076,1742406643255,-512.83,0.00029777,2]
[356401077,1742406643265,-500.0,0.00029777,2]
[356401078,1742406643275,-500.0,0.00029777,2]
[356401079,1742406643284,-500.0,0.00029777,2]
[356401080,1742406643294,-754.33,0.00029777,2]
[356401081,1742406643304,-500.0,0.00029777,2]
[356401082,1742406643314,-500.0,0.00029777,2]
[356401083,1742406643323,-500.0,0.00029777,2]
[356401084,1742406643331,-500.0,0.00029777,2]
[356401085,1742406643341,-696.26,0.00029777,2]
[356401086,1742406643350,-574.22,0.00029777,2]
[356401087,1742406643359,-779.39,0.00029777,2]
[356401088,1742406643369,-823.22,0.00029777,2]
[356401089,1742406643379,-667.35,0.00029777,2]
[356401090,1742406643389,-500.0,0.00029777,2]
[356401091,1742406643399,-658.99,0.00029777,2]
[356401092,1742406643408,-500.0,0.00029777,2]
[356401099,1742406643639,-500.0,0.00029777,2]
[356401100,1742406643649,-500.0,0.00029777,2]
[356401101,1742406643659,-500.0,0.00029777,2]
[356401102,1742406643668,-500.0,0.00029777,2]
[356401103,1742406643678,-500.0,0.00029777,2]
[356401104,1742406643688,-838.26,0.00029777,2]
[356401105,1742406643698,-910.18,0.00029777,2]
[356401107,1742406643707,-619.37,0.00029777,2]
[356401108,1742406643717,-204.35183082,0.00029777,2]
[356401110,1742406643727,-500.0,0.00029777,2]
[356401111,1742406643736,-952.9,0.00029777,2]
[356401112,1742406643746,-952.48,0.00029777,2]
[356401113,1742406643755,-500.0,0.00029777,2]
[356401114,1742406643764,-500.0,0.00029777,2]
[356401115,1742406643774,-500.0,0.00029777,2]
[356401116,1742406643784,-500.0,0.00029777,2]
[356401117,1742406643794,-500.0,0.00029777,2]
[356401118,1742406643804,-986.98,0.00029777,2]
[356401119,1742406643813,-500.0,0.00029777,2]
[356401120,1742406643823,-500.0,0.00029777,2]
[356401121,1742406643832,-500.0,0.00029777,2]
[356401122,1742406643842,-500.0,0.00029777,2]
[356401123,1742406643851,-503.51,0.00029777,2]
[356401124,1742406643860,-1234.22,0.00029777,2]
[356401125,1742406643870,-1019.29,0.00029777,2]
[356401126,1742406643879,-500.0,0.00029777,2]
[356401127,1742406643888,-500.0,0.00029777,2]
[356401128,1742406643898,-517.93,0.00029777,2]
[356401129,1742406643908,-636.79,0.00029777,2]
[356401130,1742406643918,-500.0,0.00029777,2]
[356401131,1742406643927,-500.0,0.00029777,2]
[356401132,1742406643936,-567.81,0.00029777,2]
[356401133,1742406643946,-802.3,0.00029777,2]
[356401134,1742406643955,-500.0,0.00029777,2]
[356401135,1742406643965,-773.07,0.00029777,2]
[356401136,1742406643975,-500.0,0.00029777,2]
[356401137,1742406643985,-2003.72,0.00029777,2]
[356401138,1742406643995,-1398.95,0.00029777,2]
[356401139,1742406644005,-500.0,0.00029777,2]
[356401140,1742406644015,-500.0,0.00029777,2]
[356401141,1742406644024,-945.81,0.00029777,2]
[356401142,1742406644035,-982.33,0.00029777,2]
[356401143,1742406644046,-508.87555424,0.00029778,2]
[356401144,1742406644055,-500.0,0.00029778,2]
[356401145,1742406644065,-497.17085285,0.00029778,2]
[356401146,1742406644075,-639.63324241,0.00029778,2]
[356401147,1742406644084,-154.90635051,0.00029778,2]
[356401148,1742406644094,-500.0,0.00029778,2]
[356401149,1742406644103,-500.0,0.00029778,2]
[356401150,1742406644112,-409.9600908,0.00029778,2]
[356401151,1742406644122,-500.0,0.00029778,2]
[356401152,1742406644131,-500.0,0.00029778,2]
[356401153,1742406644141,-500.0,0.00029778,2]
[356401154,1742406644150,-500.0,0.00029778,2]
[356401155,1742406644160,-500.0,0.00029778,2]
[356401156,1742406644170,-500.0,0.00029778,2]
[356401157,1742406644179,-500.0,0.00029778,2]
[356401158,1742406644189,-500.0,0.00029778,2]
[356401159,1742406644199,-500.0,0.00029778,2]
[356401160,1742406644208,-536.80980132,0.00029778,2]
[356401161,1742406644217,-500.0,0.00029778,2]
[356401162,1742406644227,-511.41769092,0.00029778,2]
[356401163,1742406644237,-500.0,0.00029778,2]
[356401164,1742406644246,-175.82832018,0.00029778,2]
[356401165,1742406644255,-500.0,0.00029778,2]
[356401166,1742406644265,-500.0,0.00029778,2]
[356401167,1742406644274,-500.0,0.00029778,2]
[356401168,1742406644283,-500.0,0.00029778,2]
[356401169,1742406644292,-500.0,0.00029778,2]
[356401170,1742406644301,-500.0,0.00029778,2]
[356401171,1742406644310,-500.0,0.00029778,2]
[356401172,1742406644320,-597.90706078,0.00029778,2]
[356401173,1742406644330,-500.0,0.00029778,2]
[356401174,1742406644339,-500.0,0.00029778,2]
[356401175,1742406644348,-601.84,0.00029778,2]
[356401176,1742406644358,-521.3188585,0.00029778,2]
[356401177,1742406644367,-500.0,0.00029778,2]
[356401178,1742406644376,-500.0,0.00029778,2]
[356401179,1742406644385,-645.06,0.00029778,2]
[356401180,1742406644395,-500.0,0.00029778,2]
[356401181,1742406644404,-500.0,0.00029778,2]
[356401182,1742406644413,-500.0,0.00029778,2]
[356401183,1742406644422,-500.0,0.00029778,2]